Cogmind - Beta 16 @@@ ROGUE MODE // 2026.01.30 @ 19:36:56 Player: Warped Result: Destroyed by P-70 Sage with Tesla Rifle Performance ------------- Evolutions (5) 2500 Regions Visited (12) 2400 Robots Destroyed (171) 855 Value Destroyed (6079) 6079 Prototype IDs (23) 460 Alien Tech Used (0) 0 Bonus (2796) 2796 TOTAL SCORE: 15090 Bonus ------- High Alert Combat Kills 383 Follower Combat Kills 2055 Met Imprinter 300 Was Imprinted 300 Friendly Fire -242 Cogmind --------- Core Integrity 0/1000 Matter 205/300 Energy 4/700 System Corruption 26% Temperature Cool (0) Movement Walking (220) Ox1 Location -5/Factory Parts ------- > --- POWER (1) -------- (None) > --- PROPULSION (4) --- Armored Leg Medium Armored Exoskeleton > --- UTILITY (9) ------ Advanced Heat Sink Experimental Heat Sink Huge Storage Unit Zionite Biocell Transmission Jammer Improved Corruption Screen > --- WEAPON (3) ------- Advanced Variable Charge Gun Thunder Hammer > --- INVENTORY (25) --- Medium Armored Exoskeleton Medium Armored Exoskeleton Huge Storage Unit Matter Compressor (250) Improved Matter Compressor (0) Improved Matter Compressor (62) Improved Signal Interpreter Peak State ------------ > --- POWER ------------ Quantum Reactor > --- PROPULSION ------- Armored Treads Armored Treads Centrium Heavy Treads > --- UTILITY ---------- Improved Cooling System Huge Storage Unit Zionite Biocell Advanced Visual Processing Unit Improved Signal Interpreter Experimental Targeting Computer Zionite Weapon Casing Centrium Medium Armor Plating Experimental Hacking Suite > --- WEAPON ----------- KE Penetrator KE Penetrator Phasing Sabre > --- INVENTORY -------- Neutrino Core Zionite Light DM Reactor Zionite Light DM Reactor Medium Treads Medium Treads Improved Medium Treads Experimental Heat Sink Huge Storage Unit Matter Compressor Improved Trap Scanner Weapon Cycler Transmission Jammer Improved Medium Armor Plating Layered Light Armor Plating Powered Armor Powered Armor Powered Armor Dynamic Insulation System Hacking Drone Bay Advanced Variable Charge Gun Advanced Variable Charge Gun KE Penetrator Advanced KE Penetrator Advanced KE Penetrator [Rating: 110] Favorites ----------- Power Cooled Ion Engine Engine Cooled Ion Engine Power Core Light Nuclear Core Reactor Quantum Reactor Propulsion Light Treads Treads Light Treads Leg Armored Leg Wheel Armored Wheel Hover Unit Antigrav System Utility Huge Storage Unit Device Improved Cooling System Storage Huge Storage Unit Processor Signal Interpreter Hackware Hacking Suite Protection Layered Light Armor Plating Weapon High-powered Shotgun Energy Gun Medium Laser Energy Cannon Beam Cannon Ballistic Gun High-powered Shotgun Ballistic Cannon Bore Cannon Launcher Heavy Missile Launcher Impact Weapon Heavy Hammer Slashing Weapon Phasing Sabre Build | -11 -10 -10 -9 -9 -7 -6 -6 -6 -6 -6 -6 -5 ------- Run | Yrd Mat Min Mat Min Zio Pro Fac Ext Cet Arc Hub Fac Slots Evolved 10 | . . . 2 . . . 6 . . . . 2 Power . | . . . . . . . . . . . . . Propulsion 2 | . . . 1 . . . 1 . . . . . Utility 7 | . . . 1 . . . 5 . . . . 1 Weapon 1 | . . . . . . . . . . . . 1 Parts Attached 136 | 7 11 2 16 5 . 8 13 18 8 1 5 42 Power 14 | 1 1 1 2 . . 1 2 2 1 . . 3 Engine 5 | 1 1 . 2 . . . 1 . . . . . Core 6 | . . 1 . . . 1 1 2 . . . 1 Reactor 3 | . . . . . . . . . 1 . . 2 Propulsion 36 | 2 2 . 7 . . 5 . 4 1 . 1 14 Treads 15 | 2 . . 4 . . 5 . . 1 . . 3 Leg 13 | . . . 3 . . . . 4 . . . 6 Wheel 2 | . 2 . . . . . . . . . . . Hover 6 | . . . . . . . . . . . 1 5 Flight . | . . . . . . . . . . . . . Utility 41 | 2 4 . 1 2 . . 8 4 1 . 3 16 Device 12 | 1 1 . 1 . . . 1 1 . . . 7 Storage 5 | 1 2 . . . . . . . . . . 2 Processor 7 | . . . . 1 . . 3 . . . 1 2 Hackware 3 | . 1 . . 1 . . 1 . . . . . Protection 14 | . . . . . . . 3 3 1 . 2 5 Artifact . | . . . . . . . . . . . . . Weapon 45 | 2 4 1 6 3 . 2 3 8 5 1 1 9 Energy Gun 8 | 1 3 . 1 . . . 1 . 2 . . . Energy Cannon 2 | . 1 1 . . . . . . . . . . Ballistic Gun 21 | 1 . . 4 2 . . 2 1 2 1 1 7 Ballistic Cannon 7 | . . . 1 . . . . 5 1 . . . Launcher 3 | . . . . . . 2 . 1 . . . . Special Weapon . | . . . . . . . . . . . . . Impact Weapon 2 | . . . . 1 . . . . . . . 1 Slashing Weapon 2 | . . . . . . . . 1 . . . 1 Piercing Weapon . | . . . . . . . . . . . . . Special Melee Weapon . | . . . . . . . . . . . . . Unidentified Prototypes 21 | . . . 3 . . . 5 1 4 . 1 7 Parts Lost 62 | . 3 1 5 3 . . 4 10 . . . 36 Power 5 | . . . 1 . . . . 1 . . . 3 Propulsion 11 | . . 1 2 . . . 1 1 . . . 6 Utility 19 | . 1 . . 1 . . 1 3 . . . 13 Weapon 27 | . 2 . 2 2 . . 2 5 . . . 14 Highest Loss Streak 10 | . 1 1 4 2 . . 2 5 . . . 10 To Critical Strikes . | . . . . . . . . . . . . . Average Backups 19 | . 6 13 21 24 24 24 19 21 22 20 21 14 Power 2 | . 1 1 2 3 3 2 1 2 3 3 3 1 Propulsion 2 | . . . 1 3 2 1 1 6 7 5 4 2 Utility 9 | . 3 7 9 9 11 14 9 7 7 7 8 7 Weapon 5 | . . 2 6 8 7 5 6 3 5 5 5 3 Tool/Special . | . . . . . . . . . . . . . Unused Backups 45 | . . 2 3 1 10 2 3 5 4 2 2 11 Power 6 | . . . 2 . . 1 1 . . . . 2 Propulsion 11 | . . . . . 2 . . . 3 . 2 4 Utility 16 | . . 2 1 1 2 1 2 2 1 . . 4 Weapon 11 | . . . . . 5 . . 3 . 2 . 1 Tool/Special 1 | . . . . . 1 . . . . . . . Average Slot Usage (%) 92 | . 93 86 84 96 100 100 93 93 95 93 93 84 Engine 4 | . 14 2 7 11 11 6 . . . . . . Core 2 | . . 11 1 . . 4 5 5 1 . . . Reactor 1 | . . . . . . . . . 4 6 6 4 Treads 16 | . . . 13 33 33 33 21 2 14 20 19 8 Leg 6 | . . . 14 . . . . 22 7 . . 5 Wheel 2 | . 26 15 1 . . . . . . . . . Device 4 | . 5 . 4 10 . . . 4 6 6 6 11 Storage 9 | . 14 14 11 11 11 11 6 6 6 6 6 7 Processor 9 | . . . . . 11 11 19 15 13 13 13 12 Hackware 9 | . 7 14 11 7 11 11 12 8 6 6 6 2 Protection 6 | . . . . . . . 12 12 20 20 20 9 Energy Gun 1 | . 13 1 2 . . . 1 . . . . 1 Energy Cannon 2 | . 9 26 2 . . . . . . . . . Ballistic Gun 9 | . . . 15 21 11 8 9 . 8 11 13 10 Impact Weapon 2 | . . . . . 11 8 1 1 . . . . Peak Build Rating 110 | 7 12 12 22 22 25 35 70 80 98 98 97 110 Average Rating 47 | 6 10 11 18 20 22 29 60 70 92 95 95 90 On Entrance 43 | . 7 12 12 21 21 25 35 62 76 98 94 97 Avg Prop Armor Cover (%) 5 | . . . 5 . . . . . . . . 8 Naked Turns . | . . . . . . . . . . . . . Heaviest Build 145 | 14 88 91 96 95 94 99 107 118 133 129 139 145 Greatest Support 136 | 40 40 24 60 60 60 68 88 68 120 120 120 136 Greatest Overweight (x) 9 | . 3 7 7 1 1 1 2 6 2 1 1 9 Average Overweight (x) 1 | . . 6 2 1 1 1 1 1 1 1 1 1 Largest Inventory Capacity 25 | 8 25 25 25 25 25 25 25 25 25 25 25 25 Average Capacity 24 | 7 16 25 25 25 25 25 25 25 25 25 25 25 Most Carried 25 | 1 11 14 25 25 25 25 24 25 25 25 25 25 Average Carried 20 | . 6 13 21 24 24 24 19 22 24 22 23 15 Final Capacity 25 | 8 25 25 25 25 25 25 25 25 25 25 25 25 Final Carried 25 | 1 11 14 24 25 22 25 22 25 25 21 25 11 Class Distribution -------------------- 49% | Scavenger-Mutant 30% | Mutant 9% | Commander-Mutant 4% | Hacker-Mutant Dominant Class ---------------- Mutant | -10/Materials Mutant | -10/Mines Mutant | -9/Materials Scavenger-Mutant | -9/Mines Scavenger-Mutant | -7/Zion Scavenger-Mutant | -6/Proximity Caves Scavenger-Mutant | -6/Factory Commander-Mutant | -6/Extension Commander-Mutant | -6/Cetus Scavenger-Mutant | -6/Archives Scavenger-Mutant | -6/Hub_04(d) Scavenger-Mutant | -5/Factory Resources | -11 -10 -10 -9 -9 -7 -6 -6 -6 -6 -6 -6 -5 ----------- Run | Yrd Mat Min Mat Min Zio Pro Fac Ext Cet Arc Hub Fac Matter Collected 6093 | 276 306 79 691 244 20 128 453 1311 175 88 253 2069 Remotely 667 | . . . 468 199 . . . . . . . . Salvage Created 6589 | 118 527 248 851 108 . . 642 399 261 139 318 2978 Parts 359 | 7 27 18 69 18 . . 22 8 11 13 16 150 Haulers Intercepted 5 | . 2 . 2 . . . . . . . 1 . Recyclers Shooed 16 | 1 1 1 2 . . . . 2 . . . 9 Parts Field Recycled . | . . . . . . . . . . . . . Retrieved Matter . | . . . . . . . . . . . . . Parts Self-Destructed 20 | . . . . . 2 18 . . . . . . Prevented 11 | . . . . . . 11 . . . . . . Parts Restored . | . . . . . . . . . . . . . Kills | -11 -10 -10 -9 -9 -7 -6 -6 -6 -6 -6 -6 -5 ------- Run | Yrd Mat Min Mat Min Zio Pro Fac Ext Cet Arc Hub Fac Combat Hostiles Destroyed 124 | . 12 7 21 8 . . 12 12 4 1 3 44 Melee 1 | . . . . . . . . 1 . . . . Guns 93 | . 6 . 19 8 . . 12 . . 1 3 44 Cannons 21 | . 6 7 2 . . . . 2 4 . . . AOE 8 | . . . . . . . . 8 . . . . Classes Destroyed 18 | 2 5 . 3 . . . 1 4 . . . 3 Worker 5 | . . . 1 . . . . . . . 1 3 Builder 10 | . . . 1 . . . 1 1 . . 1 6 Tunneler 2 | 1 . 1 . . . . . . . . . . Hauler 5 | . 2 . 2 . . . . . . . 1 . Recycler 5 | 1 . . 1 . . . . . . . . 3 Mechanic 1 | . . . . . . . . . . . . 1 Operator 6 | . 1 . 3 . . . . . . 2 . . Watcher 12 | . 3 . 4 . . . 1 1 1 . 1 1 Swarmer 40 | . 5 3 8 8 . . 3 2 . . . 11 Grunt 41 | . 7 4 9 . . . 7 4 . . 2 8 Brawler 3 | . . . . . . . . 1 . . . 2 Duelist 1 | . . . . . . . . . . . . 1 Sentry 14 | . . . 4 . . . 1 3 . 1 1 4 Specialist 1 | . . . . . . . . . . . . 1 Hunter 11 | . . . . . . . . . . . . 11 Programmer 7 | . . . . . . . 1 . . . . 6 Behemoth 1 | . . . . . . . . 1 . . . . Cetus Guard 4 | . . . . . . . . . 4 . . . Z-Heavy 1 | . . . . . . . . 1 . . . . Butcher 1 | . . . . . . . . 1 . . . . Best Kill Streak 16 | 2 6 3 8 4 . . 6 3 5 1 2 16 Combat Bots Only 7 | . 4 3 7 4 . . 5 3 4 1 1 6 Max Kills in Single Turn 3 | 1 1 1 1 3 . . 2 2 2 1 1 2 Gunslinging 1 | . . . . 1 . . 1 . . . . 1 Exploded 2 | . . . . . . . . 2 . . . . Melee 1 | . . . . . . . . 1 . . . . Uniques/NPCs Destroyed . | . . . . . . . . . . . . . Combat | -11 -10 -10 -9 -9 -7 -6 -6 -6 -6 -6 -6 -5 -------- Run | Yrd Mat Min Mat Min Zio Pro Fac Ext Cet Arc Hub Fac Hostile Shots Fired 1281 | . 88 15 149 33 . 26 101 273 13 9 75 499 Missed 381 | . 22 2 37 7 . 9 37 106 5 3 24 129 Hits 900 | . 66 13 112 26 . 17 64 167 8 6 51 370 Melee 3 | . . . . . . . . . . . . 3 Projectile 897 | . 66 13 112 26 . 17 64 167 8 6 51 367 Critical Strikes 17 | . . . 3 . . . 1 3 1 . . 9 Part Disruptions 1 | . . . . . . . . . . . . 1 Actively Blocked 1 | . . . . . . . . . . . . 1 Damage Taken 14934 | . 666 158 1235 251 . 324 980 2370 265 136 786 7763 Core 1879 | . 199 33 133 30 . 46 14 268 23 . 120 1013 Absorbed by Shields . | . . . . . . . . . . . . . Redirected to Shielding 130 | . . . . . . . . . . . . 130 Ignored by Resistances 3 | . . . . . . . 3 . . . . . Regen/Repaired (Parts) 570 | . . . 131 . . . 439 . . . . . Core Remaining (%) 51 | 100 . 7 . . . 47 . . . . 50 . Volleys Fired 457 | 6 55 12 83 8 . 7 41 44 8 4 27 162 Largest 3 | 2 2 2 2 2 . 1 2 2 2 2 2 3 Hottest 480 | 70 116 120 120 50 . 25 85 96 480 70 66 480 Shots Fired 904 | 12 90 24 162 15 . 7 79 73 16 7 55 364 Gun 731 | 12 58 . 130 15 . 7 79 2 2 7 55 364 Cannon 140 | . 32 24 32 . . . . 38 14 . . . Launcher 33 | . . . . . . . . 33 . . . . Special . | . . . . . . . . . . . . . Kinetic 674 | 6 . . 140 15 . 7 72 40 14 7 55 318 Thermal 190 | 6 90 24 22 . . . . . 2 . . 46 Explosive 33 | . . . . . . . . 33 . . . . Electromagnetic 7 | . . . . . . . 7 . . . . . Robot Hit Streak 21 | 6 12 14 12 4 . 2 21 13 2 6 14 20 Robot Miss Streak 6 | 2 4 2 6 6 . 3 4 4 3 1 1 6 Penetration Max 1 | . . . . . . . . 1 1 . 1 1 Secondary Targets 18 | . 1 . 2 3 . . 1 . . . . 11 Max Gunslinging Chain 1 | . 1 . 1 1 . . 1 . . . . 1 Shots Hit Robots 620 | 9 55 15 105 11 . 6 58 59 6 7 44 245 Core Hits 324 | 4 24 9 47 9 . 4 32 45 5 6 14 125 Critical Kills 18 | . . . . . . . 4 1 5 . 2 6 Critical Parts Destroyed 28 | . . . 1 . . . 5 6 2 . 1 13 Critical Strikes 61 | . 5 . 1 . . . 9 13 8 . 4 21 Burn 5 | . 5 . . . . . . . . . . . Destroy 51 | . . . 1 . . . 9 9 8 . 4 20 Blast 2 | . . . . . . . . 2 . . . . Smash 2 | . . . . . . . . 1 . . . 1 Sever 1 | . . . . . . . . 1 . . . . Melee Attacks 64 | . . . . 5 . 1 15 25 . 2 . 16 Impact 41 | . . . . 5 . 1 15 12 . . . 8 Slashing 23 | . . . . . . . . 13 . 2 . 8 Piercing . | . . . . . . . . . . . . . Sneak Attacks 10 | . . . . . . . . 4 . 2 . 4 Combat Hostiles 1 | . . . . . . . . 1 . . . . Follow-up Attacks . | . . . . . . . . . . . . . Damage Inflicted 17177 | 93 914 315 1933 204 . 141 1099 3350 172 331 1095 7530 Guns 11708 | 93 481 . 1558 204 . 141 1099 13 . 124 1095 6900 Cannons 2044 | . 433 262 354 . . . . 823 172 . . . Explosions 1977 | . . . . . . . . 1977 . . . . Melee 1339 | . . . . . . . . 537 . 207 . 595 Ramming 109 | . . 53 21 . . . . . . . . 35 Kinetic 11419 | 32 . . 1695 204 . 141 978 836 172 124 1095 6142 Thermal 2212 | 61 914 262 217 . . . . . . . . 758 Explosive 1977 | . . . . . . . . 1977 . . . . Electromagnetic 121 | . . . . . . . 121 . . . . . Impact 591 | . . . . . . . . 347 . . . 244 Slashing 748 | . . . . . . . . 190 . 207 . 351 Piercing . | . . . . . . . . . . . . . Highest Corruption 26 | . . . . . . . 1 1 1 1 3 26 Average Corruption 4 | . . . . . . . 1 1 1 1 2 13 Corruption Purged . | . . . . . . . . . . . . . Corruption Blocked 8 | . . . . . . . . . . . . 8 Effects 95 | . . . . . . . 1 19 3 1 16 55 Message Errors 21 | . . . . . . . 1 4 1 . 5 10 Matter Fused 28 | . . . . . . . . 6 . 1 8 13 Heat Flow Errors 6 | . . . . . . . . 1 . . . 5 Energy Discharges 12 | . . . . . . . . 3 2 . . 7 Parts Rejected 3 | . . . . . . . . . . . . 3 Parts Fused 1 | . . . . . . . . 1 . . . . Data Loss (minor) 5 | . . . . . . . . 1 . . . 4 Data Loss (major) 2 | . . . . . . . . . . . 2 . Misfires 5 | . . . . . . . . 2 . . 1 2 Alerts 3 | . . . . . . . . 1 . . . 2 Misdirections 2 | . . . . . . . . . . . . 2 Weapon Failures 7 | . . . . . . . . . . . . 7 Overload Shots 4 | . . . . . . . . . 2 . . 2 Overflow Damage 508 | . 5 9 . . . . . 284 . . . 210 Projectiles 51 | . 5 . . . . . . 46 . . . . Explosions 28 | . . . . . . . . 28 . . . . Melee 429 | . . 9 . . . . . 210 . . . 210 Knockbacks 10 | . . . 2 . . . . 5 . . . 3 Impact 5 | . . . 1 . . . . 1 . . . 3 Kinetic 4 | . . . 1 . . . . 3 . . . . Secondary 1 | . . . . . . . . 1 . . . . Self-Inflicted Damage 98 | . . 25 . . . . . 65 . . . 8 Shots 4 | . . . . . . . . 4 . . . . Rammed 9 | . . 4 3 . . . . . . . . 2 Targets Rammed 13 | . . 4 4 . . . . . . . . 5 Kicked 3 | . . . 1 . . . . . . . . 2 Crushed 1 | . . . . . . . . . . . . 1 Highest Temperature 419 | 60 419 330 244 . . . 296 385 354 . . 407 Average Temperature 125 | 27 140 146 138 . . . 95 121 189 . . 125 Received Heat Transfer 2589 | . 222 45 450 42 . 30 312 660 . 18 144 666 Effects 8 | . 3 . 1 . . . 1 2 . . . 1 Shutdowns 1 | . . . . . . . . 1 . . . . Energy Bleed 3 | . . . 1 . . . 1 . . . . 1 Matter Decay 3 | . 3 . . . . . . . . . . . Short Circuit 1 | . . . . . . . . 1 . . . . Siege Activations . | . . . . . . . . . . . . . Martial Activations . | . . . . . . . . . . . . . Shielding Activations . | . . . . . . . . . . . . . Robots Disrupted . | . . . . . . . . . . . . . Combat Hostiles . | . . . . . . . . . . . . . Robots Corrupted 2 | . . 1 . . . . . 1 . . . . Combat Hostiles . | . . . . . . . . . . . . . Parts Fried 3 | . . 3 . . . . . . . . . . Impact Corruptions 7 | . . 1 . . . . . 3 . . . 3 Robots Melted . | . . . . . . . . . . . . . Combat Hostiles . | . . . . . . . . . . . . . Parts Melted 13 | 1 6 2 1 . . . . . . . . 3 Heat Transferred 4736 | 185 2516 555 518 . . . . . . . . 962 Parts Sabotaged 3 | . . . . . . . . . . . . 3 Parts Stolen . | . . . . . . . . . . . . . Parts Stripped . | . . . . . . . . . . . . . Power Chain Reactions . | . . . . . . . . . . . . . Alert | -11 -10 -10 -9 -9 -7 -6 -6 -6 -6 -6 -6 -5 ------- Run | Yrd Mat Min Mat Min Zio Pro Fac Ext Cet Arc Hub Fac Maximum Alert Level 3 | . . . 1 1 . . . 2 2 . 1 3 Low Security (%) 67 | 100 100 100 83 93 . . 100 18 . 100 91 40 Level 1 23 | . . . 16 6 . . . 77 99 . 8 5 Level 2 5 | . . . . . . . . 3 . . . 30 Level 3 3 | . . . . . . . . . . . . 23 Level 4 . | . . . . . . . . . . . . . Level 5 . | . . . . . . . . . . . . . High Security . | . . . . . . . . . . . . . Max Security . | . . . . . . . . . . . . . Peak Influence 800 | 10 161 70 282 223 . . 126 572 407 157 232 800 Initial 318 | . . 43 24 108 . . 73 . 318 96 16 113 Average 161 | . 92 11 91 81 . . 34 262 319 105 66 392 Influence Increases 6272 | 10 352 175 655 195 . 565 350 1429 205 181 539 1616 Destroy 0b10 Robot/C 3620 | . 240 140 420 160 . 320 260 760 80 80 220 940 Destroy 0b10 Robot/NC 245 | 10 30 5 60 . . . 10 15 5 10 30 70 Destroy Leader 644 | . 60 30 112 20 . 50 52 74 . . 64 182 Allied During Kill 736 | . . . . . . 195 2 322 78 58 67 14 Successful Hack 52 | . 6 . 10 . . . 14 . 6 . . 16 Disable Machine 285 | . 15 . . . . . . 45 30 30 105 60 Destroy Structure 435 | . 1 . 8 . . . 12 198 6 3 53 154 Lose Combat Pursuer 255 | . . . 45 15 . . . 15 . . . 180 Influence Decreases 5559 | 10 240 225 439 473 . 448 467 860 533 375 354 1135 Entered New Map 867 | . . 69 38 170 . . 44 . 251 145 31 119 Time Decay 3528 | 10 220 153 371 273 . 328 371 590 222 170 264 556 Lost Part 575 | . 20 3 30 30 . . 32 100 . . . 360 Lost Ally 589 | . . . . . . 120 20 170 60 60 59 100 Squads Dispatched 28 | . 3 . 2 1 . 1 2 3 . . 4 12 Investigation 7 | . 1 . . 1 . 1 1 2 . . . 1 Extermination 4 | . . . . . . . 1 . . . 1 2 Reinforcement 14 | . 2 . 2 . . . . 1 . . 3 6 Assault . | . . . . . . . . . . . . . Garrison 3 | . . . . . . . . . . . . 3 Intercept . | . . . . . . . . . . . . . Searches Triggered . | . . . . . . . . . . . . . Construction Impeded 3 | . . . . . . . . 1 . . . 2 Haulers Reinforced 2 | . . . . . . . . . . . 1 1 Active Scanning Responses . | . . . . . . . . . . . . . Cargo Convoy Interrupts 2 | . . . . . . . 1 . . . . 1 Stealth | -11 -10 -10 -9 -9 -7 -6 -6 -6 -6 -6 -6 -5 --------- Run | Yrd Mat Min Mat Min Zio Pro Fac Ext Cet Arc Hub Fac Distress Signals 13 | . 2 . 2 . . . 3 3 1 . 1 1 Communications Jammed 6 | . . . . . . . . . . . . 6 Distress Signals 5 | . . . . . . . . . . . . 5 Times Spotted 237 | . 19 7 36 12 . 14 18 45 5 4 10 67 Peak Tracking Total 12 | . 7 3 7 4 . 7 5 5 5 2 2 12 Tactical Retreats 14 | . . . 2 1 . . . 1 . . . 10 Traps | -11 -10 -10 -9 -9 -7 -6 -6 -6 -6 -6 -6 -5 ------- Run | Yrd Mat Min Mat Min Zio Pro Fac Ext Cet Arc Hub Fac Traps Triggered 7 | . . . . . . . 3 2 . . 2 . Indirectly . | . . . . . . . . . . . . . Trap Hack Attempts . | . . . . . . . . . . . . . Triggered . | . . . . . . . . . . . . . Disarmed . | . . . . . . . . . . . . . Reprogrammed . | . . . . . . . . . . . . . Reused . | . . . . . . . . . . . . . Traps Extracted . | . . . . . . . . . . . . . Installed . | . . . . . . . . . . . . . Triggered . | . . . . . . . . . . . . . Machines | -11 -10 -10 -9 -9 -7 -6 -6 -6 -6 -6 -6 -5 ---------- Run | Yrd Mat Min Mat Min Zio Pro Fac Ext Cet Arc Hub Fac Machines Disabled 21 | . 1 . . . . . . 5 2 2 7 4 Max in Single Turn 2 | . 1 . . . . . . 2 2 . 2 1 Garrison Access 1 | . . . . . . . 1 . . . . . Machines Repaired . | . . . . . . . . . . . . . Machines Dismantled . | . . . . . . . . . . . . . Machines Sabotaged . | . . . . . . . . . . . . . Overloaded Fab Kills . | . . . . . . . . . . . . . Hacking | -11 -10 -10 -9 -9 -7 -6 -6 -6 -6 -6 -6 -5 --------- Run | Yrd Mat Min Mat Min Zio Pro Fac Ext Cet Arc Hub Fac Machines Accessed 25 | . 3 . 6 2 . 1 6 2 3 . . 2 Terminals 13 | . 3 . 3 1 . 1 1 1 3 . . . Fabricators . | . . . . . . . . . . . . . Repair Stations 4 | . . . 1 . . . 2 . . . . 1 Recycling Units 3 | . . . 1 . . . 1 1 . . . . Scanalyzers 3 | . . . 1 . . . 1 . . . . 1 Garrison Access 1 | . . . . . . . 1 . . . . . Total Hacks 65 | . 11 . 18 3 . 4 11 5 8 . . 5 Successful 37 | . 4 . 11 1 . 4 10 1 2 . . 4 Failed 26 | . 7 . 6 2 . . . 4 6 . . 1 Catastrophic 8 | . 2 . 1 2 . . . . 3 . . . Database Lockouts 2 | . . . 1 . . . 1 . . . . . Manual 55 | . 8 . 8 . . . 5 20 . . 12 2 Terminals 38 | . 11 . 9 2 . 4 1 3 8 . . . Fabricators . | . . . . . . . . . . . . . Repair Stations 8 | . . . 2 . . . 4 . . . . 2 Recycling Units 4 | . . . 1 . . . 1 2 . . . . Scanalyzers 13 | . . . 6 . . . 4 . . . . 3 Garrison Access 1 | . . . . . . . 1 . . . . . Terminal Hacks 12 | . 2 . 1 1 . 4 1 1 2 . . . Record 6 | . . . . . . 4 . . 2 . . . Robot Analysis 1 | . 1 . . . . . . . . . . . Prototype ID Bank 1 | . 1 . . . . . . . . . . . Open Door 3 | . . . . 1 . . 1 1 . . . . Zone Layout 1 | . . . 1 . . . . . . . . . Fabricator Hacks . | . . . . . . . . . . . . . Repair Station Hacks 7 | . . . 2 . . . 4 . . . . 1 Scan Component 4 | . . . 1 . . . 2 . . . . 1 Repair 3 | . . . 1 . . . 2 . . . . . Recycling Unit Hacks 2 | . . . 1 . . . 1 . . . . . Report Inventory 1 | . . . . . . . 1 . . . . . Retrieve Components 1 | . . . 1 . . . . . . . . . Scanalyzer 11 | . . . 5 . . . 3 . . . . 3 Insert Component 4 | . . . 2 . . . 1 . . . . 1 Analyze 4 | . . . 2 . . . 1 . . . . 1 Retrieve Study 3 | . . . 1 . . . 1 . . . . 1 Garrison Access Hacks 1 | . . . . . . . 1 . . . . . Seal Access 1 | . . . . . . . 1 . . . . . Unauthorized Hacks 4 | . 2 . 2 . . . . . . . . . Terminals 4 | . 2 . 2 . . . . . . . . . Botnet 4 | . 2 . 2 . . . . . . . . . Fabricators . | . . . . . . . . . . . . . Repair Stations . | . . . . . . . . . . . . . Recycling Units . | . . . . . . . . . . . . . Scanalyzers . | . . . . . . . . . . . . . Garrison Access . | . . . . . . . . . . . . . Data Cores Recovered . | . . . . . . . . . . . . . Used . | . . . . . . . . . . . . . Hacking Detections 19 | . 3 . 4 1 . 1 3 2 3 . . 2 Full Trace Events 5 | . 1 . . . . 1 1 1 . . . 1 Feedback Events 1 | . . . . . . . . . . . . 1 Corruption 1 | . . . . . . . . . . . . 1 Feedback Blocked . | . . . . . . . . . . . . . Robot Schematics Acquired . | . . . . . . . . . . . . . Robots Built . | . . . . . . . . . . . . . Authchips . | . . . . . . . . . . . . . Time . | . . . . . . . . . . . . . Total Robot Build Rating . | . . . . . . . . . . . . . Part Schematics Acquired 4 | . . . 2 . . . 1 . . . . 1 Parts Built . | . . . . . . . . . . . . . Authchips . | . . . . . . . . . . . . . Time . | . . . . . . . . . . . . . Total Part Build Rating . | . . . . . . . . . . . . . Part Studies Acquired 3 | . . . 1 . . . 1 . . . . 1 Parts Repaired 3 | . . . 1 . . . 2 . . . . . Time 95 | . . . 26 . . . 69 . . . . . Parts Recycled . | . . . . . . . . . . . . . Recycled Matter . | . . . . . . . . . . . . . Retrieved Matter . | . . . . . . . . . . . . . Retrieved Components . | . . . . . . . . . . . . . Parts Scanalyzed 4 | . . . 2 . . . 1 . . . . 1 Part Schematics Acquired 4 | . . . 2 . . . 1 . . . . 1 Parts Damaged 1 | . . . 1 . . . . . . . . . Bothacking | -11 -10 -10 -9 -9 -7 -6 -6 -6 -6 -6 -6 -5 ------------ Run | Yrd Mat Min Mat Min Zio Pro Fac Ext Cet Arc Hub Fac Used RIF Installer . | . . . . . . . . . . . . . Robots Hacked . | . . . . . . . . . . . . . Non-combat . | . . . . . . . . . . . . . Combat . | . . . . . . . . . . . . . Robot Hacks Applied . | . . . . . . . . . . . . . Relay Couplers Released . | . . . . . . . . . . . . . Fabnet Peak Effective % . | . . . . . . . . . . . . . Robots Rewired 22 | . . . . . . . . 22 . . . . Allies Hacked . | . . . . . . . . . . . . . Hacks Repelled . | . . . . . . . . . . . . . Allies | -11 -10 -10 -9 -9 -7 -6 -6 -6 -6 -6 -6 -5 -------- Run | Yrd Mat Min Mat Min Zio Pro Fac Ext Cet Arc Hub Fac Total Allies 44 | . . . . . 11 . . 25 . . 5 3 Largest Group 13 | . . . . . 11 11 2 13 13 10 11 3 Highest-Rated Group 374 | . . . . . 349 349 59 374 374 287 306 210 Highest-Rated Ally 85 | . . . . . 51 51 39 85 31 31 35 70 Zionite Dispatches 5 | . . . . . . . . 2 . . 2 1 Heavy 1 | . . . . . . . . 1 . . . . Light 1 | . . . . . . . . . . . . 1 Fire 1 | . . . . . . . . . . . 1 . Demo 1 | . . . . . . . . . . . 1 . Offense Resupply 1 | . . . . . . . . 1 . . . . Total Orders 1 | . . . . . . . . 1 . . . . DROP 1 | . . . . . . . . 1 . . . . Ally Attacks 344 | . . . . . . 54 9 133 21 26 62 39 Total Damage 9128 | . . . . . . 1635 262 3955 293 407 1865 711 Kills 62 | . . . . . . 18 1 27 . 3 10 3 Allies Corrupted . | . . . . . . . . . . . . . Allies Melted . | . . . . . . . . . . . . . Intel | -11 -10 -10 -9 -9 -7 -6 -6 -6 -6 -6 -6 -5 ------- Run | Yrd Mat Min Mat Min Zio Pro Fac Ext Cet Arc Hub Fac Active Infowar (turns) 1841 | 105 110 . . . . . . . . . . 1626 Optics 1015 | . . . . . . . . . . . . 1015 Sensors 121 | . . . . . . . . . . . . 121 Traps 173 | . . . . . . . . . . . . 173 Seismic 215 | 105 110 . . . . . . . . . . . Jamming 866 | . . . . . . . . . . . . 866 Robot Analysis Total 1 | . 1 . . . . . . . . . . . Derelict Logs Recovered 7 | . . 1 . 2 1 3 . . . . . . Drone Launches . | . . . . . . . . . . . . . Drone Recoveries . | . . . . . . . . . . . . . Zionite Intel Received 7 | . . . . . . . 1 4 . . 2 . Branch Access 1 | . . . . . . . . 1 . . . . Emergency Access 1 | . . . . . . . . . . . 1 . Guard Positions 1 | . . . . . . . 1 . . . . . Component Stockpiles 1 | . . . . . . . . 1 . . . . Trap Installations 1 | . . . . . . . . 1 . . . . Depthwide Sectors/0 1 | . . . . . . . . 1 . . . . Depthwide Sectors/-1 1 | . . . . . . . . . . . 1 . Exploration | -11 -10 -10 -9 -9 -7 -6 -6 -6 -6 -6 -6 -5 ------------- Run | Yrd Mat Min Mat Min Zio Pro Fac Ext Cet Arc Hub Fac Turns Passed 13638 | 163 588 753 2086 870 1552 1156 1352 1997 460 349 685 1627 Spaces Moved 5499 | 47 373 370 705 408 763 494 482 819 187 148 267 436 Core 4 | 4 . . . . . . . . . . . . Treads 3493 | 43 9 . 392 408 763 494 482 82 144 148 267 261 Legs 1147 | . . . 200 . . . . 737 43 . . 167 Wheels 847 | . 364 370 113 . . . . . . . . . Hover 8 | . . . . . . . . . . . . 8 Flight . | . . . . . . . . . . . . . Fastest Speed 50 | 50 90 135 195 200 200 200 217 190 190 219 219 160 Average Speed 204 | 150 106 184 240 200 200 225 222 193 217 219 219 218 Slowest Speed 630 | 160 160 195 540 200 200 250 285 540 260 219 219 630 Overloaded Moves . | . . . . . . . . . . . . . Propulsion Burnouts . | . . . . . . . . . . . . . Robots Hopped . | . . . . . . . . . . . . . Potential Cave-ins 13 | . . . . . . . . . . . . 13 Cave-ins Triggered 1 | . . . . . . . . . . . . 1 Exploration Rate (%) 58 | 5 50 83 63 94 87 72 14 81 76 89 31 10 Regions Visited 12 Branch Regions 8 Pre-discovered Areas 16 | . . . . . . 1 . 10 . . 5 . Known Exits Taken 8 | . . . . 1 1 1 1 1 1 1 1 . Unknown Exits Taken 4 | 1 1 1 1 . . . . . . . . . Scrap Searched 6 | . . 1 . 3 2 . . . . . . . Spaces Dug 17 | . . . . . . 1 10 1 . . . 5 Terrain Destroyed 399 | . . . 2 . . 1 10 305 4 3 8 66 Melee 15 | . . . . . . 1 10 1 . . . 3 Projectile 83 | . . . 2 . . . . 4 4 3 8 62 AOE 300 | . . . . . . . . 300 . . . . Terrain Rammed 1 | . . . . . . . . . . . . 1 Walls Destroyed . | . . . . . . . . . . . . . Machines Disabled . | . . . . . . . . . . . . . Actions | -11 -10 -10 -9 -9 -7 -6 -6 -6 -6 -6 -6 -5 --------- Run | Yrd Mat Min Mat Min Zio Pro Fac Ext Cet Arc Hub Fac Total 6923 | 125 472 413 927 438 796 533 660 1113 225 165 314 742 Wait 324 | 65 17 20 76 7 13 7 78 16 2 . 2 21 Move 5487 | 46 372 369 704 407 762 493 481 818 186 147 266 436 Hop . | . . . . . . . . . . . . . Pick Up 130 | 1 11 4 26 5 9 6 11 18 6 2 7 24 Fast Attach 53 | 7 6 . 5 . . . 8 8 2 . 3 14 Attach 68 | . 2 . 9 3 . . 11 8 1 . . 34 Detach 5 | . . . 1 . . . 1 2 . . . 1 Swap 70 | . 3 2 6 2 . 10 9 11 10 4 3 10 Drop 101 | . 6 2 13 1 12 9 5 14 10 6 6 17 Fire 457 | 6 55 12 83 8 . 7 41 44 8 4 27 162 Melee 64 | . . . . 5 . 1 15 25 . 2 . 16 Ram 6 | . . 4 . . . . . . . . . 2 Kick 3 | . . . 1 . . . . . . . . 2 Crush 6 | . . . 3 . . . . . . . . 3 Escape Stasis 10 | . . . . . . . . 10 . . . . Rewire 139 | . . . . . . . . 139 . . . . Trap . | . . . . . . . . . . . . . Miscellaneous . | . . . . . . . . . . . . . Route ------- -11/Scrapyard -10/Materials (discovered 3 exits: *Mat / [*Min] / [*Sub]) -10/Mines -9/Materials (discovered 2 exits: [*Mat] / *Min) -9/Mines (discovered 3 exits: [*Mat x2] / *Zio) -7/Zion -6/Proximity Caves -6/Factory (discovered 4 exits: Fac x2 / Low / *Ext) -6/Extension (discovered 3 exits: *Fac x2 / *Cet) -6/Cetus -6/Archives (discovered 3 exits: *Fac / *Hub x2) -6/Hub_04(d) -5/Factory (discovered 1 exit: [*Upp]) History --------- Turn | Location | Event 27 | -11/Scrapyard | Discovered new exit (range 16) 164 | -11/Scrapyard | Entered Materials 303 | -10/Materials | Core integrity fell below 50% 319 | -10/Materials | Build established: Mutant 453 | -10/Materials | Discovered new exit (range 13) 641 | -10/Materials | Discovered new exit (range 10) 727 | -10/Materials | Discovered new exit (range 10) 752 | -10/Materials | Entered Mines 1030 | -10/Mines | Core integrity fell below 20% 1199 | -10/Mines | Learned Materials trap positions 1471 | -10/Mines | Discovered new exit (range 7) 1505 | -10/Mines | Entered Materials 1505 | -9/Materials | Evolved 2 slots: Propulsion x1, Utility x1 1506 | -9/Materials | Loaded intel: 15 trap records 1797 | -9/Materials | Lost 4 parts (1p1n2w) 2439 | -9/Materials | Discovered new exit (range 16) 2516 | -9/Materials | Central database locked down 2832 | -9/Materials | Destroyed 7 combat bots 2975 | -9/Materials | Repaired Lgt. Treads+ 3227 | -9/Materials | Discovered new exit (range 7) 3591 | -9/Materials | Entered Mines 3639 | -9/Mines | A Derelict revealed a hidden shortcut to a safe place 3650 | -9/Mines | Learned 2 Materials zone layouts 3772 | -9/Mines | Received a Rocket Launcher from a helpful Derelict 3836 | -9/Mines | Discovered new exit (range 3) 3887 | -9/Mines | Met a Derelict shopkeep closing up shop 4002 | -9/Mines | Learned Materials terminal intel 4201 | -9/Mines | Build established: Scavenger-Mutant 4322 | -9/Mines | Discovered new exit (range 9) 4397 | -9/Mines | Excavation squad dispatched 4397 | -9/Mines | A large section of the Mines collapsed 4436 | -9/Mines | Identified exit to Zion 4461 | -9/Mines | Entered Zion 4695 | -7/Zion | Gained Derelict followers 4797 | -7/Zion | Gained Derelict followers 4979 | -7/Zion | Learned Factory emergency access door positions 4993 | -7/Zion | Learned Factory stockpile data 5085 | -7/Zion | Met Imprinter 5117 | -7/Zion | Imprinted 5119 | -7/Zion | Declared Zion's savior 5427 | -7/Zion | Found Prototype Processor 5432 | -7/Zion | Found Prototype Hackware 5435 | -7/Zion | Found Prototype Processor 5590 | -7/Zion | Given the Hacking Drone Bay 5591 | -7/Zion | Found Prototype Device 5960 | -7/Zion | Discovered new exit (range 15) 5988 | -7/Zion | Identified exit to Proximity Caves 6013 | -7/Zion | Entered Proximity Caves 6013 | -6/Proximity Caves | Accompanied by 11 allies 6073 | -6/Proximity Caves | Learned Factory non-interactive machine intel 6233 | -6/Proximity Caves | Learned 8 Factory zone layouts 6326 | -6/Proximity Caves | Lost 4 allies 6618 | -6/Proximity Caves | Attracted the attention of an 0b10 base 6637 | -6/Proximity Caves | Core integrity fell below 50% 6668 | -6/Proximity Caves | Lost 4 allies 6920 | -6/Proximity Caves | Spotted B-75 Beast 6934 | -6/Proximity Caves | Allies destroyed B-75 Beast 7144 | -6/Proximity Caves | Discovered new exit (range 11) 7167 | -6/Proximity Caves | Identified exit to Factory 7169 | -6/Proximity Caves | Entered Factory 7169 | -6/Factory | Accompanied by 2 allies 7169 | -6/Factory | Evolved 6 slots: Propulsion x1, Utility x5 7170 | -6/Factory | Identified exit to Factory 7170 | -6/Factory | Identified exit to Lower Caves 7170 | -6/Factory | Identified Exp. Hacking Suite 7171 | -6/Factory | Identified Hacking Drone Bay 7173 | -6/Factory | Loaded intel: 236 non-interactive machine locations 7176 | -6/Factory | Identified Exp. Core Analyzer 7177 | -6/Factory | Identified Exp. Targeting Computer 7352 | -6/Factory | Central database locked down 7562 | -6/Factory | Repaired Arm. Treads+ 8009 | -6/Factory | Retrieved Zion intel report: Guard Positions 8233 | -6/Factory | Repaired Lyr. Medium Armor Plating 8402 | -6/Factory | Allied Derelicts emerged from ambush trap array 8413 | -6/Factory | Discovered new exit (range 6) 8417 | -6/Factory | Cargo convoy interrupted 8420 | -6/Factory | Identified exit to Extension 8494 | -6/Factory | Terminal network hard line cut 8521 | -6/Factory | Entered Extension 8728 | -6/Extension | Retrieved Zion intel report: Depthwide Sectors/-6 8729 | -6/Extension | Zion Heavy squad teleported in 8832 | -6/Extension | Zion Offense Resupply teleported in 8998 | -6/Extension | Build established: Hacker-Mutant 9051 | -6/Extension | Spotted B-75 Beast 9073 | -6/Extension | Spotted B-75 Beast 9120 | -6/Extension | Lost 6 allies 9143 | -6/Extension | Destroyed B-75 Beast 9159 | -6/Extension | Lost 3 parts (1u2w) 9227 | -6/Extension | Discovered exit to Factory (range 3) 9335 | -6/Extension | Lost 5 parts (1p2u2w) 9500 | -6/Extension | Retrieved Zion intel report: Component Stockpiles 9541 | -6/Extension | Retrieved Zion intel report: Trap Installations 9567 | -6/Extension | Build established: Mutant 9646 | -6/Extension | Lost 3 allies 9869 | -6/Extension | Retrieved Zion intel report: Branch Access 9869 | -6/Extension | Identified exit to Cetus 9938 | -6/Extension | Terminal network hard line cut 10127 | -6/Extension | Build established: Commander-Mutant 10438 | -6/Extension | Discovered exit to Factory (range 10) 10518 | -6/Extension | Entered Cetus 10518 | -6/Cetus | Accompanied by 13 allies 10544 | -6/Cetus | Spotted Cetus Guard 10544 | -6/Cetus | Spotted Cetus Guard 10548 | -6/Cetus | Spotted Cetus Guard 10548 | -6/Cetus | Spotted Cetus Guard 10553 | -6/Cetus | Destroyed Cetus Guard 10562 | -6/Cetus | Destroyed Cetus Guard 10565 | -6/Cetus | Destroyed Cetus Guard 10565 | -6/Cetus | Destroyed Cetus Guard 10593 | -6/Cetus | Lost 3 allies 10934 | -6/Cetus | Discovered new exit (range 16) 10965 | -6/Cetus | Identified exit to Archives 10978 | -6/Cetus | Entered Archives 10978 | -6/Archives | Accompanied by 10 allies 11110 | -6/Archives | Unable to access archive contents 11136 | -6/Archives | Unable to access archive contents 11151 | -6/Archives | Discovered exit to Factory (range 16) 11165 | -6/Archives | Unable to access archive contents 11187 | -6/Archives | Discovered new exit (range 16) 11216 | -6/Archives | Discovered new exit (range 13) 11240 | -6/Archives | Identified exit to Hub_04(d) 11327 | -6/Archives | Entered Hub_04(d) 11327 | -6/Hub_04(d) | Accompanied by 7 allies 11386 | -6/Hub_04(d) | Build established: Scavenger-Mutant 11420 | -6/Hub_04(d) | Zion Fire squad teleported in 11478 | -6/Hub_04(d) | Spotted B-75 Beast 11516 | -6/Hub_04(d) | Lost 9 allies 11547 | -6/Hub_04(d) | Allies destroyed B-75 Beast 11581 | -6/Hub_04(d) | Retrieved Zion intel report: Depthwide Sectors/-5 11582 | -6/Hub_04(d) | Zion Demo squad teleported in 11591 | -6/Hub_04(d) | Found Powered Armor 11595 | -6/Hub_04(d) | Found Powered Armor 11599 | -6/Hub_04(d) | Found Powered Armor 11785 | -6/Hub_04(d) | Retrieved Zion intel report: Emergency Access 11984 | -6/Hub_04(d) | Discovered exit to Factory (range 13) 12012 | -6/Hub_04(d) | Entered Factory 12012 | -5/Factory | Accompanied by 2 allies 12012 | -5/Factory | Evolved 2 slots: Utility x1, Weapon x1 12182 | -5/Factory | Zion Light squad teleported in 12431 | -5/Factory | Found Prototype Protection 12437 | -5/Factory | Lost 3 allies 12472 | -5/Factory | Identified Zio. Weapon Casing 12595 | -5/Factory | Garrison activated, responded to threat 12643 | -5/Factory | Cargo convoy interrupted 12761 | -5/Factory | Lost 6 parts (2n2u2w) 12982 | -5/Factory | Lost 10 parts (1p2n3u4w) 13028 | -5/Factory | Crushed by falling debris 13028 | -5/Factory | Core integrity fell below 50% 13028 | -5/Factory | System corruption reached 10% 13059 | -5/Factory | Lost 4 parts (2u2w) 13274 | -5/Factory | Terminal network hard line cut 13568 | -5/Factory | Core integrity fell below 20% 13602 | -5/Factory | Discovered new exit (range 16) 13634 | -5/Factory | Lost 6 parts (1p2u3w) 13639 | -5/Factory | Destroyed by P-70 Sage with Tesla Rifle Last Messages --------------- Imp. Corruption Screen intercepted 1% system corruption. P-70 Sage knocked back. Imp. Corruption Screen intercepted 1% system corruption. Emergency Access malfunctions. P-70 Sage resets P-70 Sage, system corruption cleaned. Imp. Corruption Screen intercepted 1% system corruption. P-70 Sage suffers critical hit (Smash). Destroyed Antigrav System. Destroyed Hpw. Shock Rifle. P-70 Sage system corrupted by crushing effect. P-70 Sage knocked back. System corrupted: Heat flow error (+263). Emergency Access malfunctions. P-70 Sage resets P-70 Sage, system corruption cleaned. Map ----- +----------------------------------------------------+ | ???????????????????????????? | | ???????????????????????????? | | ???????????????????????????? | | ???????????????????????????? | | ???????????????????????????? | | ???????????????????????????? | | ?????????????????? ????????? | | ????????????????"" ????????? | | ?????? H ???????"" ?????#+# | | ?????? ?????? ?????# # | | ????? ?????? ????## # | | ????? ??????#+####### | | ?????# #????### | | ?????" "????# # | | ?????#^^ #????### "%" | | ?????#^^ #????# % ""% | | ?????# #????# % """ | | ?????# #????# % | | ###### #????# %%% | | #/ # ##?#?# % | | # # ;#?# # | | # # ###### [ | | # #% % * = ### | | # p p/ %%% !! #?? | | # ! # ! % !! #?? | | # @!##%"########* !! ### | | # #### !!! # ## | | # / # ! ! !+ | | ###/##### !!! # ######### | | ??# #???######### #??????### | | ??# #???????????# #??????# | | ??###??????????? ??????# | | ???????????????? ??????# | | ??????????????? ??????# | | ??????????????? ??????# | | ??????????????# ??????# | | ??????????????#####??????### | | ???????????????????????????? | | ???????????????????????????? | | ???????????????????????????? | | ???????????????????????????? | | ?????????################??? | | ?????????# #??? | | ?????????# #??? | | ?????????# #??? | | ??????????? ! ???? | | ???????????? = ?????? | | ????????????? ???????? | | ???????########+#+######???? | | ???????# #???? | +----------------------------------------------------+ Best States ------------- Heat Dissipation 85 Coolant Potential 50 Energy Generation 27 Energy Capacity 700 Matter Stores 389 Matter Capacity 600 Sight Range 20 Robot Scan Range 15 Terrain Scan Density 10 Jamming Range 12 EM Shielding 2 Corruption Block 15 Armor Coverage 1025 Resistance: EM 20 Weapon Shielding 100 Weapon Cycling 15 Evasion (%) 42 Targeting Accuracy 12 Target Analysis 8 Recoil Reduction 4 Offensive Hacking 26 Item Schematics ----------------- Imp. Heat Sink | -9/Materials | Scanalyzed Signal Interpreter | -9/Materials | Scanalyzed Adv. Heat Sink | -6/Factory | Scanalyzed KE Penetrator | -5/Factory | Scanalyzed Robot Schematics ------------------ None Fabricated ------------ Nothing Repaired ---------- Lgt. Treads | 6% | -9/Materials Arm. Treads | 51% | -6/Factory Lyr. Medium Armor Plating | 11% | -6/Factory Studied --------- Lgt. Treads | -9/Materials | Hacked Arm. Treads | -6/Factory | Hacked KE Penetrator | -5/Factory | Hacked Alien Tech Used ----------------- None Achievements -------------- Backstab I Spy Into The Breach Ooh, Shiny! Challenges ------------ None Game ------ Seed CobblerChipRipper Manual? 0 Play Time 02:28:22 Cumulative 15.6 hours Start 2026.01.29 @ 19:48:51 End 2026.01.30 @ 19:36:56 Sessions 3 Manual Loads 0 Difficulty Rogue Special Mode None Game No. 10 Rogue 10 Adventurer 0 Explorer 0 Win Type - Total 0 Types 0/0/0/0/0/0/0/0/0/0 Lore% 21 Gallery% 20 Achievement% 20 Wizard Run 0 Options --------- Layout 1 ASCII 0 Keyboard 0 Movement Numpad Keybinds 0 Fullscreen 2 Font 24/Smallcaps Map View 50x35 Zoom Use 0% Tactical HUD 0 Map Filters NONE Filters NONE Steam 1 RUN: 62046aee-6823-4d2b-95a5-87032560e442